fUSD/lending_fUSD_20251027
["ID","MTS","AMOUNT","RATE_DAILY","PERIOD"]
[392502657,1761576649108,-1202.57,0.00033096,2]
[392502658,1761576649118,-150.0,0.00033096,2]
[392502659,1761576649129,-414.74,0.00033096,2]
[392502660,1761576649139,-356.24,0.00033096,2]
[392502661,1761576649148,-1202.57,0.00033096,2]
[392502662,1761576649157,-150.0,0.00033096,2]
[392502663,1761576649167,-414.74,0.00033096,2]
[392502664,1761576649176,-1202.57,0.00033096,2]
[392502665,1761576649185,-150.0,0.00033096,2]
[392502666,1761576649195,-414.74,0.00033096,2]
[392502667,1761576649206,-150.0,0.00033096,2]
[392502668,1761576649215,-414.74,0.00033096,2]
[392502669,1761576649224,-151.50385082,0.00033099,7]
[392502670,1761576649233,-446.60074859,0.00033099,7]
[392502671,1761576649349,-1202.57,0.000331,2]
[392502672,1761576649359,-150.0,0.000331,2]
[392502673,1761576649369,-150.0,0.000331,2]
[392502674,1761576649380,-150.0,0.000331,2]
[392502675,1761576649391,-414.74,0.000331,2]
[392502676,1761576649400,-150.0,0.000331,2]
[392502677,1761576649410,-1202.57,0.000331,2]
[392502678,1761576649420,-150.0,0.000331,2]
[392502679,1761576649431,-150.0,0.000331,2]
[392502680,1761576649441,-414.74,0.000331,2]
[392502681,1761576649451,-1202.57,0.000331,2]
[392502682,1761576649465,-414.74,0.000331,2]
[392502683,1761576649474,-150.0,0.000331,2]
[392502684,1761576649484,-150.0,0.000331,2]
[392502685,1761576649494,-448.0,0.0003312,7]
[392502686,1761576649504,-681.38,0.00033127,2]
[392502687,1761576649514,-166.66,0.00033199,30]
[392502688,1761576649523,-150.0,0.000332,2]
[392502689,1761576649532,-1202.57,0.000332,2]
[392502690,1761576649541,-414.74,0.000332,2]
[392502691,1761576649551,-150.0,0.000332,2]
[392502692,1761576649560,-150.0,0.000332,2]
[392502693,1761576649570,-697.12,0.000332,2]
[392502694,1761576649579,-1202.57,0.000332,2]
[392502695,1761576649588,-150.0,0.000332,2]
[392502696,1761576649597,-150.0,0.000332,2]
[392502697,1761576649607,-414.74,0.000332,2]
[392502698,1761576649616,-150.0,0.000332,2]
[392502699,1761576649625,-31273.3588996,0.00033297,2]
[392502700,1761576649635,-500.0,0.000333,15]
[392502701,1761576649645,-1006.0,0.000333,7]
[392502702,1761576649655,-476.05,0.0003337,2]
[392502703,1761576649664,-476.05,0.0003337,2]
[392502704,1761576649674,-697.12,0.0003337,2]
[392502705,1761576649684,-476.05,0.0003337,2]
[392502706,1761576649694,-697.12,0.0003337,2]
[392502707,1761576649704,-476.05,0.0003337,2]
[392502708,1761576649713,-697.12,0.0003337,2]
[392502709,1761576649723,-476.05,0.0003337,2]
[392502710,1761576649733,-697.12,0.0003337,2]
[392502711,1761576649742,-476.05,0.0003337,2]
[392502712,1761576649751,-697.12,0.0003337,2]
[392502713,1761576649761,-476.05,0.0003337,2]
[392502714,1761576649771,-697.12,0.0003337,2]
[392502715,1761576649780,-476.05,0.0003337,2]
[392502716,1761576649791,-697.12,0.0003337,2]
[392502717,1761576649800,-476.05,0.0003337,2]
[392502718,1761576649809,-697.12,0.0003337,2]
[392502719,1761576649818,-697.12,0.0003337,2]
[392502720,1761576649827,-476.05,0.0003337,2]
[392502721,1761576649837,-697.12,0.0003337,2]
[392502722,1761576649847,-476.05,0.0003337,2]
[392502723,1761576649857,-150.0,0.00033386,4]
[392502724,1761576649866,-150.0,0.00033386,4]
[392502725,1761576649875,-150.0,0.00033386,4]
[392502726,1761576649885,-150.0,0.00033386,4]
[392502727,1761576649894,-150.0,0.00033386,4]
[392502728,1761576649904,-150.0,0.00033386,4]
[392502729,1761576649913,-150.0,0.00033386,4]
[392502730,1761576649922,-150.0,0.00033386,4]
[392502731,1761576649932,-1454.87987,0.0003341,2]
[392502732,1761576649941,-168.67,0.000335,2]
[392502733,1761576649951,-150.0,0.000335,2]
[392502734,1761576649960,-697.12,0.000335,2]
[392502735,1761576649969,-476.05,0.000335,2]
[392502736,1761576649979,-370.0,0.000335,120]
[392502737,1761576649988,-476.05,0.000336,2]
[392502738,1761576649998,-150.0,0.000336,2]
[392502739,1761576650007,-1202.57,0.000336,2]
[392502740,1761576650017,-150.0,0.000336,2]
[392502741,1761576650027,-414.74,0.000336,2]
[392502742,1761576650036,-150.0,0.000336,2]
[392502743,1761576650045,-697.12,0.000336,2]
[392502744,1761576650055,-1000.0,0.000336,7]
[392502745,1761576650064,-505.08327487,0.00033621,5]
[392502746,1761576650073,-879.41323735,0.00033621,2]
[392502747,1761576650082,-1454.87987,0.0003366,2]
[392502748,1761576650091,-150.0,0.00033757,7]
[392502749,1761576650101,-1000.0,0.000338,7]
[392502750,1761576650110,-500.0,0.00033823,28]
[392502751,1761576650120,-166.66,0.00033857,30]
[392502752,1761576650129,-150.0,0.00033881,2]
[392502753,1761576650138,-337.22,0.00033881,2]
[392502754,1761576650147,-150.0,0.00033881,2]
[392502755,1761576650156,-150.0,0.00033881,2]
[392502756,1761576650165,-697.12,0.000339,2]
[392502757,1761576650175,-1398.53748519,0.000339,2]
[392502758,1761576650184,-1454.87987,0.0003391,2]
[392502759,1761576650194,-414.74,0.00033918,2]
[392502760,1761576650203,-150.0,0.00033918,2]
[392502761,1761576650212,-150.0,0.00033918,2]
[392502762,1761576650221,-414.74,0.00033918,2]
[392502763,1761576650231,-150.0,0.00033918,2]
[392502764,1761576650240,-414.74,0.00033918,2]
[392502765,1761576650249,-352.62,0.00033918,2]
[392502766,1761576650259,-150.0,0.00033918,2]
[392502767,1761576650268,-150.0,0.00033918,2]
[392502768,1761576650278,-150.0,0.00033918,2]
[392502769,1761576650287,-151.0,0.0003398,2]
[392502770,1761576650297,-151.0,0.0003398,2]
[392502771,1761576650306,-151.0,0.0003398,2]
[392502772,1761576650316,-151.0,0.0003398,2]
[392502773,1761576650325,-151.0,0.0003398,2]
[392502774,1761576650334,-151.0,0.0003398,2]
[392502775,1761576650343,-151.0,0.0003398,2]
[392502776,1761576650352,-151.0,0.0003398,2]
[392502777,1761576650361,-151.0,0.0003398,2]
[392502778,1761576650370,-151.0,0.0003398,2]
[392502779,1761576650384,-151.0,0.0003398,2]
[392502780,1761576650393,-150.71,0.00033984,2]
[392502781,1761576650403,-500.0,0.00033989,28]
[392502782,1761576650411,-63772.3736244,0.00034,2]
[392502783,1761576650421,-697.12,0.00034086,2]
[392502784,1761576650431,-178.57,0.000341,2]
[392502785,1761576650441,-1000.0,0.000341,7]
[392502786,1761576650451,-4926.0,0.00034126,2]
[392502787,1761576650461,-150.0,0.00034128,7]
[392502788,1761576650470,-303.85956404,0.00034168,5]
[392502789,1761576650479,-1330.0,0.000342,4]
[392502790,1761576650488,-4926.0,0.00034219,2]
[392502791,1761576650498,-1398.53748514,0.00034247,2]
[392502792,1761576650507,-500.0,0.00034288,7]
[392502793,1761576650517,-500.0,0.00034288,2]
[392502794,1761576650528,-502.58859303,0.00034288,28]
[392502795,1761576650538,-16515.759289,0.00034298,3]
[392502796,1761576650548,-153.113376,0.00034299,31]
[392502797,1761576650558,-151.0,0.00034299,31]
[392502798,1761576650568,-151.0,0.00034299,31]
[392502799,1761576650579,-178.542344,0.00034299,31]
[392502800,1761576650588,-151.0,0.00034299,31]
[392502801,1761576650598,-151.0,0.00034299,31]
[392502802,1761576650607,-151.0,0.00034299,31]
[392502803,1761576650617,-152.834404,0.00034299,31]
[392502804,1761576650626,-151.0,0.00034299,31]
[392502805,1761576650635,-218.442421,0.00034299,31]
[392502806,1761576650645,-209.022416,0.00034299,31]
[392502807,1761576650654,-151.0,0.00034299,31]
[392502808,1761576650665,-151.887113,0.00034299,31]
[392502809,1761576650674,-151.0,0.00034299,31]
[392502810,1761576650683,-151.0,0.00034299,31]
[392502811,1761576650694,-151.0,0.00034299,31]
[392502812,1761576650703,-151.0,0.00034299,10]
[392502813,1761576650713,-155.572859,0.00034299,31]
[392502814,1761576650722,-151.0,0.00034299,31]
[392502815,1761576650733,-160.0,0.00034299,31]
[392502816,1761576650746,-155.586544,0.00034299,31]
[392502817,1761576650755,-151.0,0.00034299,31]
[392502818,1761576650766,-151.0,0.00034299,31]
[392502819,1761576650777,-151.0,0.00034299,31]
[392502820,1761576650786,-151.0,0.00034299,31]
[392502821,1761576650797,-151.0,0.00034299,31]
[392502822,1761576650806,-154.039224,0.00034299,31]
[392502823,1761576650816,-151.0,0.00034299,31]
[392502824,1761576650825,-153.713462,0.00034299,31]
[392502825,1761576650834,-151.0,0.00034299,31]
[392502826,1761576650844,-152.400036,0.00034299,31]
[392502827,1761576650854,-151.0,0.00034299,31]
[392502828,1761576650864,-151.0,0.00034299,31]
[392502829,1761576650876,-151.0,0.00034299,31]
[392502830,1761576650887,-151.0,0.00034299,31]
[392502831,1761576650896,-151.0,0.00034299,31]
[392502832,1761576650906,-151.0,0.00034299,31]
[392502833,1761576650916,-151.0,0.00034299,5]
[392502834,1761576650927,-151.0,0.00034299,31]
[392502835,1761576650937,-151.0,0.00034299,31]
[392502836,1761576650946,-151.0,0.00034299,31]
[392502837,1761576650956,-151.0,0.00034299,31]
[392502838,1761576650967,-153.735005,0.00034299,31]
[392502839,1761576650976,-155.010784,0.00034299,31]
[392502840,1761576650986,-153.121792,0.00034299,31]
[392502841,1761576650996,-151.0,0.00034299,31]
[392502842,1761576651006,-156.549038,0.00034299,31]
[392502843,1761576651016,-151.0,0.00034299,31]
[392502844,1761576651025,-151.0,0.00034299,31]
[392502845,1761576651035,-160.288355,0.00034299,31]
[392502846,1761576651045,-151.0,0.00034299,31]
[392502847,1761576651055,-151.0,0.00034299,31]
[392502848,1761576651064,-151.0,0.00034299,31]
[392502849,1761576651074,-151.0,0.00034299,30]
[392502850,1761576651084,-151.0,0.00034299,31]
[392502851,1761576651094,-151.0,0.00034299,31]
[392502852,1761576651202,-151.0,0.00034299,31]
[392502853,1761576651225,-153.174234,0.00034299,31]
[392502854,1761576651234,-16515.759289,0.00034309,3]
[392502855,1761576651243,-151.0,0.00034309,31]
[392502856,1761576651253,-151.0,0.00034309,31]
[392502857,1761576651262,-155.052803,0.00034309,31]
[392502858,1761576651272,-264.408345,0.00034309,31]
[392502859,1761576651281,-151.0,0.00034309,15]
[392502860,1761576651291,-161.547548,0.00034309,31]
[392502861,1761576651300,-151.0,0.00034309,31]
[392502862,1761576651310,-151.0,0.00034309,31]
[392502863,1761576651320,-151.0,0.00034309,31]
[392502864,1761576651329,-151.0,0.00034309,31]
[392502865,1761576651338,-151.0,0.00034309,31]
[392502866,1761576651347,-151.0,0.00034309,31]
[392502867,1761576651356,-152.849832,0.00034309,31]
[392502868,1761576651366,-151.0,0.00034309,31]
[392502869,1761576651376,-151.0,0.00034309,31]
[392502870,1761576651389,-151.0,0.00034309,31]
[392502871,1761576651398,-152.690878,0.00034309,31]
[392502872,1761576651408,-153.940144,0.00034309,30]
[392502873,1761576651418,-151.0,0.00034309,31]
[392502874,1761576651428,-154.295557,0.00034309,31]
[392502875,1761576651438,-151.0,0.00034309,31]
[392502876,1761576651449,-151.0,0.00034309,31]
[392502877,1761576651459,-16515.759289,0.00034319,3]
[392502878,1761576651468,-156.238457,0.00034319,14]
[392502879,1761576651478,-151.0,0.00034319,31]
[392502880,1761576651488,-151.0,0.00034319,31]
[392502881,1761576651501,-151.0,0.00034319,31]
[392502882,1761576651510,-151.0,0.00034319,31]
[392502883,1761576651520,-151.0,0.00034326,14]
[392502884,1761576651529,-697.12,0.00034329,2]
[392502885,1761576651538,-697.12,0.00034329,2]
[392502886,1761576651548,-697.12,0.00034329,2]
[392502887,1761576651557,-697.12,0.00034329,2]
[392502888,1761576651567,-697.12,0.00034329,2]
[392502889,1761576651576,-697.12,0.00034329,2]
[392502890,1761576651586,-697.12,0.00034329,2]
[392502891,1761576651596,-697.12,0.00034329,2]
[392502892,1761576651605,-476.05,0.00034329,2]
[392502893,1761576651615,-476.05,0.00034329,2]
[392502894,1761576651624,-697.12,0.00034329,2]
[392502895,1761576651633,-697.12,0.00034329,2]
[392502896,1761576651642,-476.05,0.00034329,2]
[392502897,1761576651652,-697.12,0.00034329,2]
[392502898,1761576651661,-476.05,0.00034329,2]
[392502899,1761576651670,-608.6,0.00034329,2]
[392502900,1761576651681,-476.05,0.00034329,2]
[392502901,1761576651691,-1041.98,0.00034329,2]
[392502902,1761576651700,-476.05,0.00034329,2]
[392502903,1761576651709,-206.95849332,0.00034353,120]
[392502904,1761576651719,-616.84,0.00034392,2]
[392502905,1761576651729,-172.28,0.00034403,2]
[392502906,1761576651738,-2049.98462356,0.00034417,30]
[392502907,1761576651747,-191.19565679,0.00034421,2]
[392502908,1761576651758,-2992.42272681,0.00034421,2]
[392502909,1761576651768,-631.2050917,0.0003445,2]
[392502910,1761576651778,-152.43,0.00034457,60]
[392502911,1761576651787,-152.43,0.00034457,60]
[392502912,1761576651797,-4795.10674179,0.00034497,3]
[392502913,1761576651875,-44.38527762,0.00032699,2]
[392502914,1761576651900,-288.89118015,0.00032699,2]
[392502915,1761576651920,-166.72354223,0.00032699,2]
[392502916,1761576651931,-436.62830093,0.00032699,2]
[392502917,1761576651940,-10891.64815684,0.00034497,3]
[392502918,1761576673686,300.0,0.0003,120]
[392502950,1761576804149,500.0,0.00024932,2]
[392502953,1761576837558,300.0,0.0003,120]
[392502954,1761576872744,2623.25130957,0.000221,2]
[392502955,1761576893860,300.0,0.0003,120]
[392502960,1761577024018,800.0,0.00026986,120]
[392502962,1761577146716,800.0,0.00026986,120]
[392502968,1761577516817,2073.93,0.00026986,120]
[392502969,1761577579804,2000.0,0.000315,120]
[392502971,1761577735474,2044.556121,0.0003712,120]
[392502972,1761577742897,218.48,0.00031507,120]
[392502973,1761577749142,-178.96815207,0.00021987,2]
[392502974,1761577749164,-150.0,0.00021999,2]
[392502975,1761577749185,-500.0,0.00022073,2]
[392502976,1761577749208,-300.0,0.00022086,2]
[392502977,1761577749231,-151.0,0.00022087,2]
[392502978,1761577749254,-151.0,0.00022087,2]
[392502979,1761577749278,-151.0,0.00022087,2]
[392502980,1761577749300,-151.0,0.00022087,2]
[392502981,1761577749324,-151.0,0.00022087,2]
[392502982,1761577749345,-151.0,0.00022087,2]
[392502983,1761577749368,-151.0,0.00022087,2]
[392502984,1761577749390,-151.0,0.00022087,2]
[392502985,1761577749412,-151.0,0.00022087,2]
[392502986,1761577749433,-151.0,0.00022087,2]
[392502987,1761577749455,-151.0,0.00022087,2]
[392502988,1761577749477,-151.0,0.00022087,2]
[392502989,1761577749499,-151.0,0.00022087,2]
[392502990,1761577749647,-151.0,0.00022087,2]
[392502991,1761577749672,-151.0,0.00022087,2]
[392502992,1761577749695,-151.0,0.00022087,2]
[392502993,1761577749718,-151.0,0.00022087,2]
[392502994,1761577749741,-151.0,0.00022087,2]
[392502995,1761577749763,-151.0,0.00022087,2]
[392502996,1761577749788,-151.0,0.00022087,2]
[392502997,1761577749810,-151.0,0.00022087,2]
[392502998,1761577749832,-151.0,0.00022087,2]
[392502999,1761577749856,-199.99,0.00022087,2]
[392503000,1761577749880,-300.0,0.00022097,2]
[392503001,1761577749903,-1200.0,0.00022097,2]
[392503002,1761577749929,-500.0,0.00022098,2]
[392503003,1761577749968,-391.41461748,0.00022098,2]
[392503004,1761577759091,-108.58538252,0.00022098,2]
[392503005,1761577759112,-500.0,0.00022098,2]
[392503006,1761577759136,-500.0,0.00022098,2]
[392503007,1761577759156,-500.0,0.00022098,2]
[392503008,1761577759178,-500.0,0.00022098,2]
[392503009,1761577759204,-500.0,0.00022098,2]
[392503010,1761577759225,-500.0,0.00022098,2]
[392503011,1761577759250,-445.99138665,0.00022098,2]
[392503012,1761577759270,-500.0,0.00022098,2]
[392503013,1761577759290,-500.0,0.00022098,2]
[392503014,1761577759310,-195.82456483,0.00022098,2]
[392503015,1761577760094,-321.78581531,0.00022098,2]
[392503016,1761577760115,-5010.06440788,0.00022099,2]
[392503017,1761577774113,-182.30631736,0.00022099,2]
[392503018,1761577774137,-1529.12852578,0.000221,2]
[392503043,1761577832348,-300.0,0.00022099,2]
[392503044,1761577832359,-1200.0,0.00022099,2]
[392503045,1761577832368,-56127.56402236,0.000221,2]
[392503046,1761577832378,-200.0,0.00022361,2]
[392503047,1761577832388,-178.96815206,0.00022521,2]
[392503049,1761577832397,-346.0,0.00024012,2]
[392503051,1761577832407,-1680.0,0.00024124,2]
[392503053,1761577832416,-250.0,0.0002431,2]
[392503055,1761577832426,-173.5,0.00024737,2]
[392503056,1761577832435,-500.0,0.00024932,2]
[392503059,1761577832452,-173.47614532,0.00025285,7]
[392503062,1761577832464,-2351.0,0.00026335,2]
[392503064,1761577832474,-250.0,0.0002756,2]
[392503065,1761577832484,-166.22150111,0.0002861,2]
[392503067,1761577832495,-689.0,0.00028749,2]
[392503069,1761577832505,-574.12855637,0.0002956,2]
[392503070,1761577832515,-7699.62,0.00029903,2]
[392503071,1761577832524,-14065.49,0.00029923,2]
[392503072,1761577832534,-1143.4,0.00029972,2]
[392503073,1761577832544,-1018.99,0.0003,2]
[392503074,1761577832555,-595.37131296,0.00030108,2]
[392503075,1761577832565,-5000.0,0.00030122,2]
[392503076,1761577832574,-489.232,0.00030438,26]
[392503077,1761577832584,-182.93139913,0.00030656,2]
[392503078,1761577832594,-500.0,0.00030683,2]
[392503079,1761577832603,-231.48,0.00030908,2]
[392503080,1761577832613,-173.5,0.00030921,2]
[392503081,1761577832623,-4000.0,0.00031507,5]
[392503082,1761577832633,-300.0,0.00032,120]
[392503083,1761577832642,-2588.69,0.00032364,120]
[392503084,1761577832651,-5888.0,0.00032453,7]
[392503085,1761577832660,-1600.0,0.00032878,120]
[392503086,1761577832669,-317.8,0.00033038,2]
[392503087,1761577832678,-2878.59,0.00033038,2]
[392503088,1761577832687,-150.99,0.00033038,2]
[392503089,1761577832696,-1057.86,0.00033038,2]
[392503090,1761577832705,-8140.87,0.00033038,2]
[392503091,1761577832714,-3053.14950867,0.00033038,2]
[392503092,1761577832729,-6946.84049133,0.00033038,2]
[392503093,1761577832738,-414.74,0.00033178,2]
[392503094,1761577832747,-414.74,0.00033178,2]
[392503095,1761577832757,-414.74,0.00033178,2]
[392503096,1761577832766,-300.0,0.00033178,2]
[392503097,1761577832776,-257.0365,0.0003328,2]
[392503098,1761577832901,-150.0,0.00033288,4]
[392503100,1761577832910,-150.0,0.00033288,4]
[392503101,1761577832920,-150.0,0.00033288,4]
[392503103,1761577832929,-150.0,0.00033288,4]
[392503104,1761577832939,-150.0,0.00033288,4]
[392503105,1761577832948,-150.0,0.00033288,4]
[392503106,1761577832957,-150.0,0.00033288,4]
[392503107,1761577832969,-150.0,0.00033288,4]
[392503108,1761577832979,-150.0,0.00033288,4]
[392503109,1761577832989,-150.0,0.00033288,4]
[392503110,1761577832998,-1303.22887885,0.00033324,7]
[392503111,1761577833008,-152.0,0.00033324,7]
[392503112,1761577833017,-152.0,0.00033324,7]
[392503113,1761577833028,-152.0,0.00033324,7]
[392503114,1761577833037,-152.0,0.00033324,7]
[392503115,1761577833047,-152.0,0.00033324,7]
[392503116,1761577833057,-152.0,0.00033324,7]
[392503117,1761577833067,-298.0,0.00033324,7]
[392503118,1761577833077,-5888.0,0.0003338,2]
[392503119,1761577833087,-151.0,0.00033421,14]
[392503120,1761577833096,-6388.74895019,0.00033424,2]
[392503121,1761577833108,-428.51527032,0.00033424,2]
[392503129,1761577838070,-999.0,0.00031241,3]
[392503130,1761577838081,-860.33992555,0.00033424,2]
[392503131,1761577838092,-514.0869975,0.00033424,2]
[392503146,1761577840159,-1418.18439839,0.00033424,2]
[392503149,1761577840296,-7913.73445805,0.00033424,2]
[392503150,1761577840306,-5888.0,0.00033445,2]
[392503151,1761577840316,-5324.34,0.0003351,2]
[392503152,1761577840327,-250.0,0.00033561,2]
[392503153,1761577840337,-150.0,0.00033578,2]
[392503154,1761577840347,-150.0,0.00033678,2]
[392503155,1761577840356,-150.0,0.0003375,7]
[392503156,1761577840366,-150.0,0.00033778,2]
[392503157,1761577840376,-493.34280791,0.00033807,20]
[392503158,1761577840386,-36317.53243097,0.00033807,2]
[392503159,1761577840395,-3490.0,0.00033891,2]
[392503160,1761577840405,-558.0,0.00033891,2]
[392503161,1761577840415,-6624.0,0.00033891,2]
[392503162,1761577840424,-6461.0,0.00033891,2]
[392503163,1761577840434,-548.12,0.00033923,2]
[392503164,1761577840444,-548.12,0.00033923,2]
[392503165,1761577840454,-548.12,0.00033923,2]
[392503166,1761577840464,-548.12,0.00033923,2]
[392503167,1761577840475,-1095.2,0.00033923,2]
[392503168,1761577840485,-548.12,0.00033923,2]
[392503169,1761577840494,-548.12,0.00033923,2]
[392503170,1761577840505,-548.12,0.00033923,2]
[392503171,1761577840514,-548.12,0.00033923,2]
[392503172,1761577840524,-548.12,0.00033923,2]
[392503173,1761577840533,-548.12,0.00033923,2]
[392503174,1761577840542,-548.12,0.00033923,2]
[392503175,1761577840551,-548.12,0.00033923,2]
[392503176,1761577840560,-548.12,0.00033923,2]
[392503177,1761577840570,-980.43,0.00033923,2]
[392503178,1761577840579,-548.12,0.00033923,2]
[392503179,1761577840588,-548.12,0.00033923,2]
[392503180,1761577840597,-548.12,0.00033923,2]
[392503181,1761577840606,-548.12,0.00033923,2]
[392503183,1761577840615,-548.12,0.00033949,2]
[392503185,1761577840624,-166.66,0.00033999,2]
[392503187,1761577840633,-300.0,0.00034,120]
[392503189,1761577840642,-548.12,0.00034,2]
[392503191,1761577840652,-548.12,0.00034,2]
[392503193,1761577840661,-527.91,0.00034,2]
[392503195,1761577840670,-1096.24,0.00034,2]
[392503197,1761577840679,-1166.66666,0.0003411,2]
[392503199,1761577840689,-150.0,0.00034212,7]
[392503201,1761577840698,-230.01156593,0.00034254,2]
[392503203,1761577840707,-4505.28090598,0.00034254,2]
[392503205,1761577840716,-500.0,0.00034273,2]
[392503207,1761577840729,-500.0,0.00034288,28]
[392503209,1761577840738,-500.0,0.00034299,2]
[392503211,1761577840747,-81095.80117502,0.000343,2]
[392503213,1761577840757,-172.94202789,0.00034344,14]
[392503215,1761577840766,-68511.7677884,0.00034347,3]
[392503218,1761577840775,-500.0,0.00034356,7]
[392503220,1761577840785,-85911.42955397,0.00034357,2]
[392503222,1761577840800,-399.80491765,0.00034357,2]
[392503225,1761577840843,-896.90148265,0.00034357,2]
[392503226,1761577840854,-689.9606494,0.00034357,2]
[392503233,1761577843243,-390.3849186,0.00033949,2]
[392503234,1761577843255,-157.7350814,0.00033949,2]
[392503235,1761577843264,-420.6049186,0.00034357,2]
[392503236,1761577843491,-19591.81551205,0.00034357,2]
[392503242,1761577846022,-414.74,0.00033178,2]
[392503244,1761577846032,-87.57608989,0.00034357,2]
[392503246,1761577846044,-663.96005494,0.00034357,2]
[392503251,1761577866052,300.0,0.00029497,120]
[392503252,1761577866202,211.20453775,0.00028294,120]
[392503253,1761577867805,195.0,0.00024308,120]
[392503254,1761577867910,195.0,0.00024457,120]
[392503255,1761577868037,195.0,0.00027789,120]
[392503256,1761577869093,5134.09293975,0.00024308,120]
[392503261,1761578084598,765.11,0.00015422,2]
[392503262,1761578085117,765.11,0.00016234,2]
[392503263,1761578085652,765.11,0.00017046,2]
[392503264,1761578085867,765.11,0.00017857,2]
[392503265,1761578099821,-159.58000016,0.00018669,2]
[392503268,1761578159266,-155.2783227,0.00018669,2]
[392503269,1761578197358,2000.0,0.0003712,120]
[392503270,1761578210714,2000.0,0.0003712,120]
[392503271,1761578225575,2000.0,0.0003712,120]
[392503272,1761578238566,250.0,0.00017,2]
[392503276,1761578470825,-306.29701461,0.00018569,2]
[392503277,1761578470848,-1802.77129447,0.00018651,2]
[392503278,1761578470873,-450.25167714,0.00018669,2]
[392503279,1761578470897,-195.0,0.00018669,2]
[392503280,1761578470919,-182.13222298,0.00018669,2]
[392503281,1761578470941,-195.0,0.00018979,2]
[392503282,1761578470964,-300.0,0.00019,2]
[392503283,1761578470986,-250.0,0.00019075,2]
[392503284,1761578471015,-765.11,0.00019481,2]
[392503285,1761578471041,-490.91925172,0.0002017,2]
[392503286,1761578471063,-250.0,0.0002027,2]
[392503287,1761578471086,-765.11,0.00020292,2]
[392503288,1761578471108,-195.0,0.00020426,2]
[392503289,1761578471130,-250.0,0.00020536,2]
[392503290,1761578471152,-195.0,0.00020536,2]
[392503291,1761578471178,-350.0,0.00021,2]
[392503292,1761578471200,-490.91925171,0.00021083,2]
[392503293,1761578471222,-1200.0,0.00021103,2]
[392503294,1761578471245,-765.11,0.00021104,2]
[392503295,1761578471270,-812.05928737,0.00021805,2]
[392503296,1761578555344,311.4069147,0.000315,120]
[392503297,1761578669249,4184.5,0.00031507,120]
[392503299,1761578708090,44089.56,0.00015,2]
[392503300,1761578708151,6213.30364006,0.00015,2]
[392503301,1761578708196,6213.30364006,0.00015,2]
[392503302,1761578708232,6213.30364006,0.00015,2]
[392503303,1761578708278,6213.30364006,0.00015,2]
[392503304,1761578708310,6213.30364006,0.00015,2]
[392503305,1761578708338,6213.30364006,0.00015,2]
[392503306,1761578708366,6213.30364006,0.00015,2]
[392503307,1761578708411,6213.30364006,0.00015,2]
[392503308,1761578708455,6213.30364006,0.00015,2]
[392503309,1761578708486,6213.30364006,0.00015,2]
[392503310,1761578708514,12863.23851205,0.00015,2]